Workbook

Sheet Property Summary
A1: 1305 Hampden Blvd. – Investment Property Analysis
A2: Summer Valley Realty LLC
A4: Unit | B4: Bedrooms | C4: Baths | D4: Sq Ft | E4: Notes | F4: Current Rent/Mo | G4: Annual Rent
A5: Unit A | B5: 2 | C5: 1 | D5: 800 | E5: Outdoor patio | F5: 1350 | G5: =F5*12 -> 16200
A6: Unit B | B6: 2 | C6: 1 | D6: 720 | F6: 1300 | G6: 15600
A7: Unit C | B7: 1 | C7: 1 | D7: 700 | E7: Dining room & outdoor deck | F7: 1100 | G7: 13200
A8: Unit D | B8: 1 | C8: 1 | D8: 600 | E8: Outdoor deck | F8: 875 | G8: 10500
A9: Unit E | B9: 1 | C9: 1 | D9: 720 | F9: 815 | G9: 9780
A10: Unit F | B10: 2 | C10: 2 | D10: 1305 | E10: Large under-roof patio & court yard | F10: 1095 | G10: 13140
A11: Unit G | B11: 1 | C11: 1 | D11: 700 | F11: 705 | G11: 8460
A12: Unit H | B12: 1 | C12: 1 | D12: 345 | F12: 800 | G12: 9600
A13: Unit J | B13: 1 | C13: 1 | D13: 800 | F13: 950 | G13: 11400
A14: TOTAL | F14: =SUM(F5:F13) -> 8990 | G14: =SUM(G5:G13) -> 107880
A16: 2025 Annual Expenses (Actual – Partial Year Jan–Aug)
A17: Expense Category | C17: 2024 Annual | D17: 2025 Annual
A18: Met-Ed (Electric) | C18: 1178.18 | D18: 1132.1
A19: UGI (Gas) | C19: 4576.37 | D19: 5594.26
A20: RAWA (Water/Sewer) | C20: 4199.93 | D20: 4538.16
A21: Lawn & Snow | C21: 2320 | D21: 2325.1
A22: Trash | C22: 1320 | D22: 1320
A23: Taxes | C23: 8698.85 | D23: 8829.71
A24: Insurance | C24: 9630.05 | D24: 9949.45
A25: Rental Permits | C25: 0 | D25: 0
A26: City Housing Bill | C26: 90 | D26: 155.25
A27: Business License | C27: 55 | D27: 55
A28: Mortgage / Loan Payment | C28: 28801.2 | D28: 28800.12 | E28: (Excluded from NOI)
A29: TOTAL OPERATING EXPENSES | C29: =SUM(C18:C27) -> 32068.38 | D29: =SUM(D18:D27) -> 33899.03
A31: Cap Rate Analysis – Current Rents
A32: Gross Annual Rental Income | C32: =G14 -> 107880
A33: Vacancy / Credit Loss (5%) | C33: =-C32*0.05 -> -5394
A34: Effective Gross Income (EGI) | C34: =C32+C33 -> 102486
A35: Total Operating Expenses (excl. mortgage) | C35: =D29 -> 33899.03
A36: Net Operating Income (NOI) | C36: =C34-C35 -> 68586.97
A37: Est. Property Value (for cap rate) | C37: 975000
A38: CAP RATE (Current) | C38: =C36/C37 -> 0.07034561026
A40: PRO FORMA – Units D, E, G, H, J Raised to $1,100/mo
A41: Unit | B41: Current Rent/Mo | C41: Pro Forma Rent/Mo | D41: Annual Increase
A42: Unit A | B42: =F5 -> 1350 | C42: 1450 | D42: =(C42-B42)*12 -> 1200
A43: Unit B | B43: =F6 -> 1300 | C43: 1350 | D43: 600
A44: Unit C | B44: 1100 | C44: 1250 | D44: 1800
A45: Unit D | B45: 875 | C45: 1250 | D45: 4500
A46: Unit E | B46: 815 | C46: 1100 | D46: 3420
A47: Unit F | B47: 1095 | C47: 1600 | D47: 6060
A48: Unit G | B48: 705 | C48: 1100 | D48: 4740
A49: Unit H | B49: 800 | C49: 1000 | D49: 2400
A50: Unit J | B50: 950 | C50: 1250 | D50: 3600
A51: TOTAL | B51: =SUM(B42:B50) -> 8990 | C51: =SUM(C42:C50) -> 11350 | D51: =SUM(D42:D50) -> 28320
A53: Pro Forma Gross Annual Income | C53: =C51*12 -> 136200
A54: Pro Forma Vacancy / Credit Loss (5%) | C54: =-C53*0.05 -> -6810
A55: Pro Forma EGI | C55: =C53+C54 -> 129390
A56: Operating Expenses (annualized) | C56: =C35 -> 33899.03
A57: Pro Forma NOI | C57: =C55-C56 -> 95490.97
A58: PRO FORMA CAP RATE | C58: =C57/C37 -> 0.09793945641

Sheet 2024 Monthly Detail
A1: 1305 Hampden Blvd. – 2024 Monthly Income
A2: Month | B2: A | C2: B | D2: C | E2: D | F2: E | G2: F | H2: G | I2: H | J2: J | L2: Total
A3: Jan | B3: 0 | C3: 1250 | D3: 840 | E3: 855 | F3: 795 | G3: 1045 | H3: 685 | I3: 680 | J3: 1050
A4: Feb | B4: 0 | C4: 1250 | D4: 840 | E4: 855 | F4: 795 | G4: 1045 | H4: 685 | I4: 680 | J4: 1050
A5: March | B5: 0 | C5: 1250 | D5: 840 | E5: 855 | F5: 795 | G5: 1045 | H5: 685 | I5: 680 | J5: 1050
A6: April | B6: 720 | C6: 1250 | D6: 840 | E6: 855 | F6: 795 | G6: 1045 | H6: 685 | I6: 680 | J6: 1050
A7: May | B7: 1200 | C7: 1250 | D7: 840 | E7: 855 | F7: 795 | G7: 1045 | H7: 685 | I7: 0 | J7: 1050
A8: June | B8: 1200 | C8: 1250 | D8: 840 | E8: 855 | F8: 795 | G8: 1045 | H8: 685 | I8: 453 | J8: 1050
A9: July | B9: 1200 | C9: 1250 | D9: 840 | E9: 855 | F9: 795 | G9: 1045 | H9: 685 | I9: 800 | J9: 1050
A10: Aug | B10: 1200 | C10: 1250 | D10: 840 | E10: 855 | F10: 795 | G10: 1045 | H10: 685 | I10: 800 | J10: 1050
A11: Sept | B11: 1200 | C11: 1250 | D11: 840 | E11: 855 | F11: 795 | G11: 1045 | H11: 685 | I11: 800 | J11: 1050
A12: Oct | B12: 1200 | C12: 1250 | D12: 840 | E12: 855 | F12: 795 | G12: 1045 | H12: 685 | I12: 800 | J12: 1050
A13: Nov | B13: 1200 | C13: 1250 | D13: 840 | E13: 855 | F13: 795 | G13: 1045 | H13: 685 | I13: 800 | J13: 950
A14: Dec | B14: 1200 | C14: 1250 | D14: 840 | E14: 855 | F14: 795 | G14: 1045 | H14: 685 | I14: 800 | J14: 950
A15: Total | B15: =SUM(B3:B14) -> 10320 | C15: 15000 | D15: 10080 | E15: 10260 | F15: 9540 | G15: 12540 | H15: 8220 | I15: 7973 | J15: 12400 | L15: =SUM(L3:L14) -> 0
A18: 1305 Hampden Blvd. – 2024 Monthly Expenses
A19: Month | B19: Met-Ed | C19: UGI | D19: RAWA | E19: Lawn/Snow | F19: Trash | G19: Taxes | H19: Insurance | I19: Rent Permits | J19: Total Exp | K19: Loan | L19: Net
A20: Jan | B20: 154.52 | C20: 760.39 | D20: 439.79 | E20: 575 | F20: 110 | G20: 0 | H20: 0 | I20: 0 | J20: =SUM(B20:I20) -> 2039.7 | K20: 2400.1
A21: Feb | B21: 133.25 | C21: 945.39 | D21: 280.73 | E21: 370 | F21: 110 | G21: 0 | H21: 0 | I21: 0 | J21: 1839.37 | K21: 2400.1
A22: March | B22: 100.61 | C22: 794.28 | D22: 252.66 | E22: 0 | F22: 110 | G22: 5186.32 | H22: 1304.6 | I22: 0 | J22: 7748.47 | K22: 2400.1
A23: April | B23: 98.77 | C23: 584.83 | D23: 266.61 | E23: 165 | F23: 110 | G23: 0 | H23: 0 | I23: 0 | J23: 1225.21 | K23: 2400.1
A24: May | B24: 81.45 | C24: 329.28 | D24: 432.97 | E24: 220 | F24: 110 | G24: 0 | H24: 0 | I24: 0 | J24: 1173.7 | K24: 2400.1
A25: June | B25: 99.7 | C25: 74 | D25: 430.54 | E25: 165 | F25: 110 | G25: 0 | H25: 3426.95 | I25: 0 | J25: 4306.19 | K25: 2400.1
A26: July | B26: 102.39 | C26: 58.93 | D26: 273.27 | E26: 220 | F26: 110 | G26: 0 | H26: 0 | I26: 0 | J26: 764.59 | K26: 2400.1
A27: Aug | B27: 88.38 | C27: 61.68 | D27: 423.88 | E27: 220 | F27: 110 | G27: 3512.53 | H27: 0 | I27: 0 | J27: 4416.47 | K27: 2400.1
A28: Sept | B28: 90.46 | C28: 66.28 | D28: 390.45 | E28: 165 | F28: 110 | G28: 0 | H28: 2449.25 | I28: 0 | J28: 3271.44 | K28: 2400.1
A29: Oct | B29: 99.92 | C29: 66.28 | D29: 465.75 | E29: 220 | F29: 110 | G29: 0 | H29: 0 | I29: 0 | J29: 961.95 | K29: 2400.1
A30: Nov | B30: 80.99 | C30: 224.14 | D30: 244.41 | E30: 0 | F30: 110 | G30: 0 | H30: 0 | I30: 0 | J30: 659.54 | K30: 2400.1
A31: Dec | B31: 47.74 | C31: 610.89 | D31: 318.87 | E31: 0 | F31: 110 | G31: 2449.25 | H31: 0 | I31: 0 | J31: 3536.75 | K31: 2400.1
A32: Total | B32: =SUM(B20:B31) -> 1178.18 | C32: 4576.37 | D32: 4219.93 | E32: 2320 | F32: 1320 | G32: 11148.1 | H32: 7180.8 | I32: 0 | J32: 31943.38 | K32: 28801.2

Sheet 2025 Monthly Detail
A1: 1305 Hampden Blvd. – 2025 Monthly Income (Jan–Aug Actual)
A2: Month | B2: A | C2: B | D2: C | E2: D | F2: E | G2: F | H2: G | I2: H | J2: J | L2: Total
A3: Jan | B3: 1200 | C3: 1250 | D3: 840 | E3: 855 | F3: 795 | G3: 1045 | H3: 685 | I3: 800 | J3: 950
A4: Feb | B4: 1200 | C4: 1250 | D4: 840 | E4: 855 | F4: 795 | G4: 1045 | H4: 685 | I4: 800 | J4: 950
A5: March | B5: 1200 | C5: 1250 | D5: 870 | E5: 875 | F5: 815 | G5: 1095 | H5: 705 | I5: 800 | J5: 950
A6: April | B6: 0 | C6: 1250 | D6: 870 | E6: 875 | F6: 815 | G6: 1095 | H6: 705 | I6: 800 | J6: 950
A7: May | B7: 1350 | C7: 1250 | D7: 870 | E7: 875 | F7: 815 | G7: 1095 | H7: 705 | I7: 800 | J7: 950
A8: June | B8: 1350 | C8: 1250 | D8: 870 | E8: 875 | F8: 815 | G8: 1095 | H8: 705 | I8: 800 | J8: 950
A9: July | B9: 1350 | C9: 927 | D9: 870 | E9: 875 | F9: 815 | G9: 1095 | H9: 705 | I9: 800 | J9: 950
A10: Aug | B10: 1350 | C10: 0 | D10: 870 | E10: 875 | F10: 815 | G10: 1095 | H10: 705 | I10: 800 | J10: 950
A11: Sept | B11: 1350 | C11: 0 | D11: 870 | E11: 875 | F11: 815 | G11: 1095 | H11: 705 | I11: 800 | J11: 950
A12: Total | B12: =SUM(B3:B11) -> 10350 | C12: 8427 | D12: 7770 | E12: 7835 | F12: 7295 | G12: 9755 | H12: 6305 | I12: 7200 | J12: 8550 | L12: =SUM(L3:L11) -> 0
A14: Note: Unit B rent going to $1,300 (per owner update). Data shows Aug at $0 – likely vacancy month.
A17: 1305 Hampden Blvd. – 2025 Monthly Expenses (Jan–Aug Actual)
A18: Month | B18: Met-Ed | C18: UGI | D18: RAWA | E18: Lawn/Snow | F18: Trash | G18: Taxes | H18: Insurance | I18: Rent Permits | J18: Total Exp | K18: Loan | L18: Net
A19: Jan | B19: 62.67 | C19: 1000.6 | D19: 414.67 | E19: 0 | F19: 110 | G19: 0 | H19: 0 | I19: 0 | J19: =SUM(B19:I19) -> 1587.94 | K19: 2400.01
A20: Feb | B20: 62.18 | C20: 1129.44 | D20: 420.91 | E20: 750 | F20: 110 | G20: 0 | H20: 1471.55 | I20: 0 | J20: 3944.08 | K20: 2400.01
A21: March | B21: 77.84 | C21: 1029.03 | D21: 392.16 | E21: 170 | F21: 110 | G21: 0 | H21: 0 | I21: 0 | J21: 1779.03 | K21: 2400.01
A22: April | B22: 71.51 | C22: 591.15 | D22: 341.55 | E22: 0 | F22: 110 | G22: 5317.18 | H22: 0 | I22: 0 | J22: 6431.39 | K22: 2400.01
A23: May | B23: 86.08 | C23: 374.99 | D23: 413.52 | E23: 318 | F23: 110 | G23: 0 | H23: 0 | I23: 0 | J23: 1302.59 | K23: 2400.01
A24: June | B24: 107.88 | C24: 100.02 | D24: 362.09 | E24: 0 | F24: 110 | G24: 0 | H24: 3550.9 | I24: 0 | J24: 4230.89 | K24: 2400.01
A25: July | B25: 114.77 | C25: 84.05 | D25: 395.28 | E25: 414 | F25: 110 | G25: 0 | H25: 0 | I25: 0 | J25: 1118.1 | K25: 2400.01
A26: Aug | B26: 128.16 | C26: 66.93 | D26: 0 | E26: 0 | F26: 110 | G26: 0 | H26: 0 | I26: 0 | J26: 305.09 | K26: 2400.01
A27: Total | B27: =SUM(B19:B26) -> 711.09 | C27: 4376.21 | D27: 2740.18 | E27: 1652 | F27: 880 | G27: 5317.18 | H27: 5022.45 | I27: 0 | J27: 20699.11 | K27: 19200.08

Sheet Unit Details
A1: 1305 Hampden Blvd. – Unit Details
A2: Unit | B2: Bedrooms | C2: Baths | D2: Sq Ft | E2: Notes/Amenities
A3: Unit A | B3: 2 | C3: 1 | D3: 800 | E3: Outdoor patio
A4: Unit B | B4: 2 | C4: 1 | D4: 720
A5: Unit C | B5: 1 | C5: 1 | D5: 700 | E5: Dining room & outdoor deck
A6: Unit D | B6: 1 | C6: 1 | D6: 600 | E6: Outdoor deck
A7: Unit E | B7: 1 | C7: 1 | D7: 720
A8: Unit F | B8: 2 | C8: 2 | D8: 1305 | E8: Large under-roof patio & court yard (largest unit)
A9: Unit G | B9: 1 | C9: 1 | D9: 700
A10: Unit H | B10: 1 | C10: 1 | D10: 345 | E10: Smallest unit
A11: Unit J | B11: 1 | C11: 1 | D11: 800
A13: Building Amenities:
A14: • Basement: 2 washers, 2 dryers (coin-op)
A15: • Driveway and 3 off-street parking spots
A16: • Gas boiler and hot water heater
